fUSD/lending_fUSD_20250123
["ID","MTS","AMOUNT","RATE_DAILY","PERIOD"]
[350115157,1737633063781,-500.0,0.00017534,2]
[350115158,1737633063790,-1608.41,0.00017534,2]
[350115159,1737633063801,-746.14,0.00017534,2]
[350115160,1737633063812,-1007.24,0.00017534,2]
[350115161,1737633063822,-2741.77,0.00017534,2]
[350115162,1737633063832,-1220.66,0.00017534,2]
[350115163,1737633063842,-500.0,0.00017534,2]
[350115164,1737633063851,-500.0,0.00017534,2]
[350115165,1737633063861,-1030.75,0.00017534,2]
[350115166,1737633063871,-599.39,0.00017534,2]
[350115167,1737633063881,-1056.34,0.00017534,2]
[350115168,1737633063890,-270.77,0.00017534,2]
[350115169,1737633063900,-2920.19,0.00017534,2]
[350115170,1737633063911,-500.0,0.00017534,2]
[350115171,1737633063920,-500.0,0.00017534,2]
[350115172,1737633063930,-892.26,0.00017534,2]
[350115173,1737633063940,-500.0,0.00017534,2]
[350115174,1737633063949,-500.0,0.00017534,2]
[350115175,1737633063960,-500.0,0.00017534,2]
[350115176,1737633063970,-500.0,0.00017534,2]
[350115177,1737633063980,-500.0,0.00017534,2]
[350115178,1737633063989,-720.19,0.00017534,2]
[350115179,1737633063999,-1782.39,0.00017534,2]
[350115180,1737633064009,-500.0,0.00017534,2]
[350115181,1737633064019,-980.9,0.00017534,2]
[350115182,1737633064028,-833.57,0.00017534,2]
[350115183,1737633064038,-364.86676982,0.00017534,2]
[350115184,1737633064048,-432.33435613,0.00017534,2]
[350115185,1737633064346,-621.7204997,0.00017534,2]
[350115186,1737633064419,-664.62,0.00016338,2]
[350115187,1737633064430,-711.3485025,0.00016338,2]
[350115188,1737633064446,-433.88984968,0.00016338,2]
[350115189,1737633064461,-511.25,0.00016338,2]
[350115190,1737633064472,-2069.19635433,0.00016338,2]
[350115191,1737633064728,-609.69529349,0.00016338,2]
[350115192,1737633064739,-426.70470651,0.00016438,2]
[350115193,1737633064752,-92.21677755,0.00016438,2]
[350115194,1737633064762,-1115.50514417,0.00017534,2]
[350115195,1737633064772,-500.0,0.00017534,2]
[350115196,1737633064783,-1872.72,0.00017534,2]
[350115197,1737633064794,-1526.03,0.00017534,2]
[350115198,1737633064803,-500.0,0.00017534,2]
[350115199,1737633064815,-500.0,0.00017534,2]
[350115200,1737633064824,-500.0,0.00017534,2]
[350115201,1737633064833,-159.58703794,0.00017534,2]
[350115202,1737633064843,-500.0,0.00017534,2]
[350115203,1737633064852,-500.0,0.00017534,2]
[350115204,1737633064862,-728.22,0.00017534,2]
[350115205,1737633064871,-500.0,0.00017534,2]
[350115206,1737633064880,-588.0,0.00017534,2]
[350115207,1737633064890,-500.0,0.00017534,2]
[350115208,1737633064899,-500.0,0.00017534,2]
[350115209,1737633064908,-500.0,0.00017534,2]
[350115210,1737633064917,-856.43,0.00017534,2]
[350115211,1737633064926,-500.0,0.00017534,2]
[350115212,1737633064936,-1505.85,0.00017534,2]
[350115213,1737633064948,-500.0,0.00017534,2]
[350115214,1737633064957,-607.33,0.00017534,2]
[350115215,1737633064967,-500.0,0.00017534,2]
[350115216,1737633064976,-937.43,0.00017534,2]
[350115217,1737633064986,-500.0,0.00017534,2]
[350115218,1737633064995,-500.0,0.00017534,2]
[350115219,1737633065004,-500.0,0.00017534,2]
[350115220,1737633065014,-500.0,0.00017534,2]
[350115221,1737633065028,-500.0,0.00017534,2]
[350115222,1737633065038,-675.23,0.00017534,2]
[350115223,1737633065048,-651.34,0.00017534,2]
[350115224,1737633065058,-1639.93,0.00017534,2]
[350115225,1737633065068,-2000.53,0.00017534,2]
[350115226,1737633065078,-500.0,0.00017534,2]
[350115227,1737633065088,-500.0,0.00017534,2]
[350115228,1737633065097,-1022.19,0.00017534,2]
[350115229,1737633065106,-248.07914957,0.00017534,2]
[350115230,1737633065116,-500.0,0.00017534,2]
[350115231,1737633065125,-554.72,0.00017534,2]
[350115232,1737633065251,-589.74,0.00017534,2]
[350115233,1737633065261,-736.76,0.00017534,2]
[350115234,1737633065271,-2009.42,0.00017534,2]
[350115235,1737633065281,-500.0,0.00017534,2]
[350115236,1737633065292,-588.71,0.00017534,2]
[350115237,1737633065304,-500.0,0.00017534,2]
[350115238,1737633065314,-2445.62,0.00017534,2]
[350115239,1737633065323,-500.0,0.00017534,2]
[350115240,1737633065333,-500.0,0.00017534,2]
[350115241,1737633065346,-500.0,0.00017534,2]
[350115242,1737633065356,-1012.38,0.00017534,2]
[350115243,1737633065366,-500.0,0.00017534,2]
[350115244,1737633065377,-500.0,0.00017534,2]
[350115245,1737633065387,-500.0,0.00017534,2]
[350115246,1737633065397,-500.0,0.00017534,2]
[350115247,1737633065407,-500.0,0.00017534,2]
[350115248,1737633065416,-637.03,0.00017534,2]
[350115249,1737633065426,-500.0,0.00017534,2]
[350115250,1737633065435,-500.0,0.00017534,2]
[350115251,1737633065445,-500.0,0.00017534,2]
[350115252,1737633065455,-500.0,0.00017534,2]
[350115253,1737633065464,-500.0,0.00017534,2]
[350115254,1737633065474,-500.0,0.00017534,2]
[350115255,1737633065484,-500.0,0.00017534,2]
[350115256,1737633065494,-5045.55976458,0.0001761,2]
[350115257,1737633065504,-1326.92,0.00017694,2]
[350115258,1737633065514,-695.3,0.00017704,2]
[350115259,1737633065524,-859.47,0.00017704,2]
[350115260,1737633065534,-1239.54,0.00017704,2]
[350115261,1737633065543,-952.19,0.00017704,2]
[350115262,1737633065553,-2178.87,0.00017704,2]
[350115263,1737633065563,-4339.31,0.00017704,2]
[350115264,1737633065572,-862.85,0.00017704,2]
[350115265,1737633065582,-827.42,0.00017704,2]
[350115266,1737633065594,-1819.66,0.00017704,2]
[350115267,1737633065605,-500.0,0.00017704,2]
[350115268,1737633065615,-831.44,0.00017704,2]
[350115269,1737633065625,-1101.93,0.00017704,2]
[350115270,1737633065636,-1272.01,0.00017704,2]
[350115271,1737633065646,-500.0,0.00017704,2]
[350115272,1737633065655,-1150.43,0.00017704,2]
[350115273,1737633065666,-500.0,0.00017704,2]
[350115274,1737633065675,-1409.13,0.00017704,2]
[350115275,1737633065685,-1591.32,0.00017704,2]
[350115276,1737633065695,-500.0,0.00017705,2]
[350115277,1737633065704,-500.0,0.00017705,2]
[350115278,1737633065714,-500.0,0.00017705,2]
[350115279,1737633065723,-500.0,0.00017705,2]
[350115280,1737633065732,-805.38,0.00017705,2]
[350115281,1737633065742,-500.0,0.00017705,2]
[350115282,1737633065752,-770.21,0.00017705,2]
[350115283,1737633065761,-565.36,0.00017705,2]
[350115284,1737633065770,-500.0,0.00017705,2]
[350115285,1737633065779,-500.0,0.00017705,2]
[350115286,1737633065789,-198.70816303,0.00017705,2]
[350115287,1737633065798,-500.0,0.00017705,2]
[350115288,1737633065807,-500.0,0.00017705,2]
[350115289,1737633065817,-500.0,0.00017705,2]
[350115290,1737633065826,-500.0,0.00017705,2]
[350115291,1737633065836,-500.0,0.00017705,2]
[350115292,1737633065845,-500.0,0.00017705,2]
[350115293,1737633065855,-2510.0,0.00017719,2]
[350115294,1737633065865,-175.44244941,0.00017769,2]
[350115295,1737633065874,-505.25283557,0.00017773,2]
[350115296,1737633065883,-715.55,0.00017808,2]
[350115297,1737633065892,-500.0,0.00017808,2]
[350115298,1737633065901,-500.0,0.00017808,2]
[350115299,1737633065911,-500.0,0.00017808,2]
[350115300,1737633065920,-500.0,0.00017808,2]
[350115301,1737633065929,-500.0,0.00017808,2]
[350115302,1737633065938,-500.0,0.00017808,2]
[350115303,1737633065947,-500.0,0.00017808,2]
[350115304,1737633065957,-500.0,0.00017808,2]
[350115305,1737633065966,-500.0,0.00017808,2]
[350115306,1737633065975,-500.0,0.00017808,2]
[350115307,1737633065984,-418.74122655,0.00017808,2]
[350115308,1737633065993,-500.0,0.00017808,2]
[350115309,1737633066002,-500.0,0.00017808,2]
[350115310,1737633066012,-264.34290776,0.00017808,2]
[350115311,1737633066021,-500.0,0.00017808,2]
[350115312,1737633066030,-500.0,0.00017808,2]
[350115313,1737633066039,-500.0,0.00017808,2]
[350115314,1737633066048,-500.0,0.00017808,2]
[350115315,1737633066058,-500.0,0.00017808,2]
[350115316,1737633066067,-500.0,0.00017808,2]
[350115317,1737633066076,-572.28,0.00017808,2]
[350115318,1737633066086,-500.0,0.00017808,2]
[350115319,1737633066095,-500.0,0.00017808,2]
[350115320,1737633066104,-500.0,0.00017808,2]
[350115321,1737633066113,-820.78,0.00017808,2]
[350115322,1737633066122,-500.0,0.00017808,2]
[350115323,1737633066131,-500.0,0.00017808,2]
[350115324,1737633066141,-500.0,0.00017808,2]
[350115325,1737633066154,-500.0,0.00017808,2]
[350115326,1737633066169,-500.0,0.00017808,2]
[350115327,1737633066186,-500.0,0.00017808,2]
[350115328,1737633066196,-266.68,0.00017808,2]
[350115329,1737633066205,-500.0,0.00017808,2]
[350115330,1737633066214,-500.0,0.00017808,2]
[350115331,1737633066223,-500.0,0.00017808,2]
[350115332,1737633066233,-500.0,0.00017808,2]
[350115333,1737633066242,-500.0,0.00017808,2]
[350115334,1737633066251,-500.0,0.00017808,2]
[350115335,1737633066261,-500.0,0.00017808,2]
[350115336,1737633066271,-601.11481853,0.00017808,2]
[350115337,1737633066280,-500.0,0.00017808,2]
[350115338,1737633066290,-518.4578454,0.00017808,2]
[350115339,1737633066306,-500.0,0.00017808,2]
[350115340,1737633066316,-423.87917866,0.00017808,2]
[350115341,1737633066326,-500.0,0.00017808,2]
[350115342,1737633066338,-500.0,0.00017808,2]
[350115343,1737633066347,-1034.6,0.00017808,2]
[350115344,1737633066356,-500.0,0.00017808,2]
[350115345,1737633066365,-566.21,0.00017808,2]
[350115346,1737633066376,-500.0,0.00017808,2]
[350115347,1737633066385,-305.58086982,0.00017808,2]
[350115348,1737633066394,-422.330522,0.00017808,2]
[350115349,1737633066403,-500.0,0.00017808,2]
[350115350,1737633066412,-646.55,0.00017808,2]
[350115351,1737633066421,-500.0,0.00017808,2]
[350115352,1737633066430,-302.18812098,0.00017808,2]
[350115353,1737633066439,-500.0,0.00017808,2]
[350115354,1737633066448,-531.083444,0.00017808,2]
[350115355,1737633066457,-500.0,0.00017808,2]
[350115356,1737633066466,-500.0,0.00017808,2]
[350115357,1737633066476,-500.0,0.00017808,2]
[350115358,1737633066485,-500.0,0.00017808,2]
[350115359,1737633066495,-174.17,0.00017808,2]
[350115360,1737633066505,-500.0,0.00017808,2]
[350115361,1737633066514,-500.0,0.00017808,2]
[350115362,1737633066523,-521.49577962,0.00017808,2]
[350115363,1737633066533,-500.0,0.00017808,2]
[350115364,1737633066542,-500.0,0.00017808,2]
[350115365,1737633066553,-640.69,0.00017808,2]
[350115366,1737633066563,-500.0,0.00017808,2]
[350115367,1737633066572,-500.0,0.00017808,2]
[350115368,1737633066583,-706.83,0.00017808,2]
[350115369,1737633066594,-554.41233393,0.00017808,2]
[350115370,1737633066603,-500.0,0.00017808,2]
[350115371,1737633066611,-500.0,0.00017808,2]
[350115372,1737633066621,-437.25369764,0.00017808,2]
[350115373,1737633066630,-691.97,0.00017808,2]
[350115374,1737633066639,-500.0,0.00017808,2]
[350115375,1737633066648,-570.8,0.00017808,2]
[350115376,1737633066657,-500.0,0.00017808,2]
[350115377,1737633066667,-500.0,0.00017808,2]
[350115378,1737633066676,-500.0,0.00017808,2]
[350115379,1737633066685,-500.0,0.00017808,2]
[350115380,1737633066694,-552.41,0.00017808,2]
[350115381,1737633066703,-500.0,0.00017808,2]
[350115382,1737633066712,-500.0,0.00017808,2]
[350115383,1737633066722,-500.0,0.00017808,2]
[350115384,1737633066731,-630.89,0.00017808,2]
[350115385,1737633066741,-500.0,0.00017808,2]
[350115386,1737633066750,-738.64,0.00017808,2]
[350115387,1737633066759,-500.0,0.00017808,2]
[350115388,1737633066768,-500.0,0.00017808,2]
[350115389,1737633066777,-300.0,0.00017808,2]
[350115390,1737633066786,-500.0,0.00017808,2]
[350115391,1737633066795,-670.93,0.00017808,2]
[350115392,1737633066804,-500.0,0.00017808,2]
[350115393,1737633066812,-500.0,0.00017808,2]
[350115394,1737633066821,-500.0,0.00017808,2]
[350115395,1737633066831,-500.0,0.00017808,2]
[350115396,1737633066841,-500.0,0.00017808,2]
[350115397,1737633066851,-716.27,0.00017808,2]
[350115398,1737633066860,-500.0,0.00017808,2]
[350115399,1737633066870,-500.0,0.00017808,2]
[350115400,1737633066878,-518.72,0.00017808,2]
[350115401,1737633066888,-500.0,0.00017808,2]
[350115402,1737633066897,-500.0,0.00017808,2]
[350115403,1737633066906,-500.0,0.00017808,2]
[350115404,1737633066915,-500.0,0.00017808,2]
[350115405,1737633066925,-500.0,0.00017808,2]
[350115406,1737633066936,-500.0,0.00017808,2]
[350115407,1737633066946,-500.0,0.00017808,2]
[350115408,1737633066955,-500.0,0.00017808,2]
[350115409,1737633066966,-507.61,0.00017808,2]
[350115410,1737633066976,-500.0,0.00017808,2]
[350115411,1737633066985,-500.0,0.00017808,2]
[350115412,1737633066994,-500.0,0.00017808,2]
[350115413,1737633067005,-597.61,0.00017808,2]
[350115414,1737633067015,-500.0,0.00017808,2]
[350115415,1737633067024,-500.0,0.00017808,2]
[350115416,1737633067033,-511.21,0.00017808,2]
[350115417,1737633067042,-1053.49,0.00017808,2]
[350115418,1737633067051,-627.45,0.00017808,2]
[350115419,1737633067061,-500.0,0.00017808,2]
[350115420,1737633067070,-844.34,0.00017808,2]
[350115421,1737633067079,-2143.34,0.00017808,2]
[350115422,1737633067088,-500.0,0.00017808,2]
[350115423,1737633067098,-500.0,0.00017808,2]
[350115424,1737633067107,-500.0,0.00017808,2]
[350115425,1737633067116,-514.47,0.00017808,2]
[350115426,1737633067125,-500.0,0.00017808,2]
[350115427,1737633067134,-500.0,0.00017808,2]
[350115428,1737633067244,-917.33,0.00017808,2]
[350115429,1737633067254,-983.53,0.00017808,2]
[350115430,1737633067264,-500.0,0.00017808,2]
[350115431,1737633067273,-1853.96,0.00017808,2]
[350115432,1737633067282,-500.0,0.00017808,2]
[350115433,1737633067292,-500.0,0.00017808,2]
[350115434,1737633067305,-500.0,0.00017808,2]
[350115435,1737633067314,-291.74,0.00017808,2]
[350115436,1737633067323,-676.76,0.00017808,2]
[350115437,1737633067333,-796.2,0.00017808,2]
[350115438,1737633067344,-500.0,0.00017808,2]
[350115439,1737633067353,-675.73,0.00017808,2]
[350115440,1737633067362,-858.84,0.00017808,2]
[350115441,1737633067372,-1256.35,0.00017808,2]
[350115442,1737633067382,-524.25767423,0.00017808,2]
[350115443,1737633067391,-754.19,0.00017808,2]
[350115444,1737633067400,-500.0,0.00017808,2]
[350115445,1737633067409,-500.0,0.00017808,2]
[350115446,1737633067418,-2322.81,0.00017808,2]
[350115447,1737633067427,-500.0,0.00017808,2]
[350115448,1737633067437,-810.9,0.00017808,2]
[350115449,1737633067446,-533.94,0.00017808,2]
[350115450,1737633067455,-1818.34,0.00017808,2]
[350115451,1737633067465,-500.0,0.00017808,2]
[350115452,1737633067474,-500.0,0.00017808,2]
[350115453,1737633067483,-617.68,0.00017808,2]
[350115454,1737633067492,-2764.66,0.00017808,2]
[350115455,1737633067501,-1021.36,0.00017808,2]
[350115456,1737633067510,-1563.53,0.00017808,2]
[350115457,1737633067520,-500.0,0.00017808,2]
[350115458,1737633067529,-500.0,0.00017808,2]
[350115459,1737633067538,-863.61,0.00017808,2]
[350115460,1737633067548,-1097.76,0.00017808,2]
[350115461,1737633067558,-500.0,0.00017808,2]
[350115462,1737633067567,-610.13,0.00017808,2]
[350115463,1737633067577,-831.35,0.00017808,2]
[350115464,1737633067586,-684.27,0.00017808,2]
[350115465,1737633067595,-1525.82,0.00017808,2]
[350115466,1737633067605,-500.0,0.00017808,2]
[350115467,1737633067614,-1592.73,0.00017808,2]
[350115468,1737633067624,-500.0,0.00017808,2]
[350115469,1737633067634,-500.0,0.00017808,2]
[350115470,1737633067643,-500.0,0.00017808,2]
[350115471,1737633067653,-500.0,0.00017808,2]
[350115472,1737633067662,-1608.41,0.00017808,2]
[350115473,1737633067672,-746.14,0.00017808,2]
[350115474,1737633067681,-2741.77,0.00017808,2]
[350115475,1737633067691,-1007.24,0.00017808,2]
[350115476,1737633067700,-1220.66,0.00017808,2]
[350115477,1737633067710,-513.90115436,0.00017808,2]
[350115478,1737633067719,-500.0,0.00017808,2]
[350115479,1737633067728,-1030.75,0.00017808,2]
[350115480,1737633067738,-599.39,0.00017808,2]
[350115481,1737633067747,-1056.34,0.00017808,2]
[350115482,1737633067757,-2920.19,0.00017808,2]
[350115483,1737633067766,-500.0,0.00017808,2]
[350115484,1737633067777,-500.0,0.00017808,2]
[350115485,1737633067786,-892.26,0.00017808,2]
[350115486,1737633067796,-500.0,0.00017808,2]
[350115487,1737633067806,-500.0,0.00017808,2]
[350115488,1737633067815,-500.0,0.00017808,2]
[350115489,1737633067825,-500.0,0.00017808,2]
[350115490,1737633067834,-500.0,0.00017808,2]
[350115491,1737633067844,-720.19,0.00017808,2]
[350115492,1737633067854,-1782.39,0.00017808,2]
[350115493,1737633067863,-521.842366,0.00017808,2]
[350115494,1737633067872,-980.9,0.00017808,2]
[350115495,1737633067882,-833.57,0.00017808,2]
[350115496,1737633067891,-2169.56,0.00017808,2]
[350115497,1737633067901,-500.0,0.00017808,2]
[350115498,1737633067910,-1872.72,0.00017808,2]
[350115499,1737633067921,-1526.03,0.00017808,2]
[350115500,1737633067931,-579.62840708,0.00017808,2]
[350115501,1737633067942,-500.0,0.00017808,2]
[350115502,1737633067952,-500.0,0.00017808,2]
[350115503,1737633067961,-500.0,0.00017808,2]
[350115504,1737633067971,-728.22,0.00017808,2]
[350115505,1737633067981,-294.18628343,0.00017808,2]
[350115506,1737633067991,-588.0,0.00017808,2]
[350115507,1737633068000,-582.28079011,0.00017808,2]
[350115508,1737633068013,-500.0,0.00017808,2]
[350115509,1737633068023,-500.0,0.00017808,2]
[350115510,1737633068033,-856.43,0.00017808,2]
[350115511,1737633068043,-500.0,0.00017808,2]
[350115512,1737633068053,-1505.85,0.00017808,2]
[350115513,1737633068062,-500.0,0.00017808,2]
[350115514,1737633068074,-607.33,0.00017808,2]
[350115515,1737633068085,-511.32389122,0.00017808,2]
[350115516,1737633068094,-937.43,0.00017808,2]
[350115517,1737633068105,-500.0,0.00017808,2]
[350115518,1737633068115,-500.0,0.00017808,2]
[350115519,1737633068124,-500.0,0.00017808,2]
[350115520,1737633068134,-500.0,0.00017808,2]
[350115521,1737633068144,-500.0,0.00017808,2]
[350115522,1737633068155,-675.23,0.00017808,2]
[350115523,1737633068166,-651.34,0.00017808,2]
[350115524,1737633068176,-1639.93,0.00017808,2]
[350115525,1737633068186,-2000.53,0.00017808,2]
[350115526,1737633068195,-500.0,0.00017808,2]
[350115527,1737633068206,-500.0,0.00017808,2]
[350115528,1737633068215,-1022.19,0.00017808,2]
[350115529,1737633068224,-500.0,0.00017808,2]
[350115530,1737633068233,-554.72,0.00017808,2]
[350115531,1737633068243,-589.74,0.00017808,2]
[350115532,1737633068252,-736.76,0.00017808,2]
[350115533,1737633068261,-2009.42,0.00017808,2]
[350115534,1737633068270,-500.0,0.00017808,2]
[350115535,1737633068279,-588.71,0.00017808,2]
[350115536,1737633068290,-500.0,0.00017808,2]
[350115537,1737633068303,-2445.62,0.00017808,2]
[350115538,1737633068312,-500.0,0.00017808,2]
[350115539,1737633068321,-500.0,0.00017808,2]
[350115540,1737633068330,-1012.38,0.00017808,2]
[350115541,1737633068340,-500.0,0.00017808,2]
[350115542,1737633068350,-500.0,0.00017808,2]
[350115543,1737633068359,-500.0,0.00017808,2]
[350115544,1737633068369,-500.0,0.00017808,2]
[350115545,1737633068378,-500.0,0.00017808,2]
[350115546,1737633068388,-500.0,0.00017808,2]
[350115547,1737633068397,-500.0,0.00017808,2]
[350115548,1737633068407,-500.0,0.00017808,2]
[350115549,1737633068416,-500.0,0.00017808,2]
[350115550,1737633068425,-500.0,0.00017808,2]
[350115551,1737633068434,-500.0,0.00017808,2]
[350115552,1737633068444,-500.0,0.00017808,2]
[350115553,1737633068452,-730.07303172,0.00017879,2]
[350115554,1737633068461,-646.127,0.00017889,2]
[350115555,1737633068471,-1270.0,0.00017889,2]
[350115556,1737633068479,-150.487,0.00017889,2]
[350115557,1737633068489,-3903.0,0.00017889,2]
[350115558,1737633068497,-150.282,0.00017889,2]
[350115559,1737633068507,-150.0,0.00017889,2]
[350115560,1737633068516,-150.0,0.00017889,2]
[350115561,1737633068525,-1176.0,0.00017889,2]
[350115562,1737633068534,-1106.0,0.00017889,2]
[350115563,1737633068543,-338.30231703,0.000179,2]
[350115564,1737633068553,-5045.55976458,0.00017928,2]
[350115565,1737633068563,-500.0,0.00017945,2]
[350115566,1737633068572,-500.0,0.00017977,2]
[350115567,1737633068581,-695.3,0.00017978,2]
[350115568,1737633068591,-859.47,0.00017978,2]
[350115569,1737633068600,-1239.54,0.00017978,2]
[350115570,1737633068609,-952.19,0.00017978,2]
[350115571,1737633068619,-2178.87,0.00017978,2]
[350115572,1737633068634,-4339.31,0.00017978,2]
[350115573,1737633068643,-862.85,0.00017978,2]
[350115574,1737633068652,-827.42,0.00017978,2]
[350115575,1737633068662,-1819.66,0.00017978,2]
[350115576,1737633068671,-500.0,0.00017978,2]
[350115577,1737633068681,-831.44,0.00017978,2]
[350115578,1737633068690,-1101.93,0.00017978,2]
[350115579,1737633068700,-1272.01,0.00017978,2]
[350115580,1737633068709,-500.0,0.00017978,2]
[350115581,1737633068719,-1150.43,0.00017978,2]
[350115582,1737633068728,-500.0,0.00017978,2]
[350115583,1737633068737,-1409.13,0.00017978,2]
[350115584,1737633068747,-1591.32,0.00017978,2]
[350115585,1737633068756,-500.0,0.00017979,2]
[350115586,1737633068766,-500.0,0.00017979,2]
[350115587,1737633068775,-500.0,0.00017979,2]
[350115588,1737633068784,-500.0,0.00017979,2]
[350115589,1737633068794,-805.38,0.00017979,2]
[350115590,1737633068804,-500.0,0.00017979,2]
[350115591,1737633068813,-770.21,0.00017979,2]
[350115592,1737633068823,-565.36,0.00017979,2]
[350115593,1737633068832,-500.0,0.00017979,2]
[350115594,1737633068842,-500.0,0.00017979,2]
[350115595,1737633068851,-500.0,0.00017979,2]
[350115596,1737633068860,-500.0,0.00017979,2]
[350115597,1737633068869,-500.0,0.00017979,2]
[350115598,1737633068879,-500.0,0.00017979,2]
[350115599,1737633068888,-500.0,0.00017979,2]
[350115600,1737633068898,-1116.412674,0.00017987,2]
[350115601,1737633068906,-488.4833187,0.00018,3]
[350115602,1737633068982,-138.59910843,0.00018,3]
[350115603,1737633069092,-684.44000001,0.00018,3]
[350115604,1737633069103,-551.47757286,0.00018,3]
[350115605,1737633069113,-357.65430417,0.00018,3]
[350115606,1737633069124,-7441.4,0.00018,3]
[350115607,1737633069215,-9171.0,0.00018,3]
[350115608,1737633069226,-598.58135854,0.00018,3]
[350115609,1737633069237,-5568.91770544,0.00018,3]
[350115610,1737633069246,-1599.81460706,0.00018,10]
[350115611,1737633069546,-500.0,0.00016438,2]
[350115612,1737633069556,-500.0,0.00016438,2]
[350115613,1737633069565,-500.0,0.00016438,2]
[350115614,1737633069574,-1072.43007779,0.00018,10]
[350115615,1737633069586,-93881.01270188,0.00018,10]
[350115616,1737633069596,-1000.0,0.00018,2]
[350115617,1737633069605,-850.31410764,0.00018,2]
[350115618,1737633069614,-338.30231691,0.00018038,2]
[350115619,1737633069624,-174.43,0.00018044,2]
[350115620,1737633069633,-500.0,0.00018081,2]
[350115621,1737633069642,-715.55,0.00018082,2]
[350115622,1737633069651,-500.0,0.00018082,2]
[350115623,1737633069660,-500.0,0.00018082,2]
[350115624,1737633069669,-490.4542005,0.00018082,2]
[350115625,1737633069678,-511.17765152,0.00018082,2]
[350115626,1737633069687,-500.0,0.00018082,2]
[350115627,1737633069696,-283.28791583,0.00018082,2]
[350115628,1737633069705,-500.0,0.00018082,2]
[350115629,1737633069714,-500.0,0.00018082,2]
[350115630,1737633069723,-500.0,0.00018082,2]
[350115631,1737633069732,-500.0,0.00018082,2]
[350115632,1737633069741,-500.0,0.00018082,2]
[350115633,1737633069751,-500.0,0.00018082,2]
[350115634,1737633069760,-500.0,0.00018082,2]
[350115635,1737633069769,-500.0,0.00018082,2]
[350115636,1737633069778,-500.0,0.00018082,2]
[350115637,1737633069787,-500.0,0.00018082,2]
[350115638,1737633069796,-572.28,0.00018082,2]
[350115639,1737633069805,-461.14634736,0.00018082,2]
[350115640,1737633069814,-500.0,0.00018082,2]
[350115641,1737633069823,-820.78,0.00018082,2]
[350115642,1737633069831,-500.0,0.00018082,2]
[350115643,1737633069841,-500.0,0.00018082,2]
[350115644,1737633069850,-500.0,0.00018082,2]
[350115645,1737633069859,-500.0,0.00018082,2]
[350115646,1737633069868,-500.0,0.00018082,2]
[350115647,1737633069877,-500.0,0.00018082,2]
[350115648,1737633069886,-500.0,0.00018082,2]
[350115649,1737633069895,-500.0,0.00018082,2]
[350115650,1737633069904,-500.0,0.00018082,2]
[350115651,1737633069914,-500.0,0.00018082,2]
[350115652,1737633069922,-500.0,0.00018082,2]
[350115653,1737633069931,-500.0,0.00018082,2]
[350115654,1737633069940,-500.0,0.00018082,2]
[350115655,1737633069950,-500.0,0.00018082,2]
[350115656,1737633069959,-500.0,0.00018082,2]